[Event "Austrian Championship 2022"]
[Site "Vienna"]
[Date "2022.08.16"]
[Round "6.4"]
[White "Shengelia, David"]
[Black "Menezes, Christoph"]
[Result "0-1"]
[ECO "D78"]
[WhiteElo "2462"]
[BlackElo "2417"]
[Annotator "TA"]
[PlyCount "114"]
[EventDate "2022.08.12"]
[EventType "swiss"]
[EventCountry "AUT"]
[SourceTitle "playchess.com"]
[Source "ChessBase"]
[SourceQuality "1"]
[TimeControl "40/5400+30:1800+30"]

{[%evp 13,114,8,12,0,8,-34,-37,-27,-26,-36,-37,-29,-37,-38,-39,-65,-28,-31,-25,-30,-29,-60,-68,-62,-66,-131,-131,-119,-118,-127,-120,-124,-87,-81,-86,-85,-80,-85,-82,-84,-87,-85,-87,-68,-62,-139,-140,-138,-139,-131,-151,-159,-140,-160,-133,-153,-141,-144,-130,-130,-131,-339,-356,-347,-339,-339,-324,-322,-300,-351,-239,-239,-239,-482,-457,-442,-420,-536,-474,-473,-401,-616,-584,-29974,-29973,-29975,-29976,-29970,-8,-29977,-8,-8,-8,-29979,-29980,-29980,-29981,-29981,-29982,-29982,-29983,-29985,-29986]} 1. d4 {[%emt 0:00:03]} Nf6 {[%emt 0:00:13]} 2. c4 {[%emt 0:00:06]} g6 {[%emt 0:00:14]} 3. g3 {[%emt 0:00:37]} c6 {[%emt 0:00:53]} 4. Bg2 {[%emt 0:00:12]} d5 {[%emt 0:00:09]} 5. Nf3 {[%emt 0:00:10]} Bg7 {[%emt 0:00:31]} 6. O-O {[%emt 0:07:12]} O-O {[%emt 0:00:32]} 7. Ne5 {[%emt 0:00:28]} Be6 {[%emt 0:05:54][%cal Bc8e6,Be6d5,Bd5c4][%mdl 32] 7...Ng4 is a critical line.} 8. cxd5 {[%emt 0:05:16] D78: Fianchetto Grünfeld: 6 0-0 c6.} Bxd5 {[%emt 0:00:45]} 9. f3 {[%emt 0:28:20]} Nfd7 {[%emt 0:10:33]} 10. Nxd7 {[%emt 0:02:58] Black is slightly better.} Qxd7 {[%emt 0:01:54]} 11. Nc3 {[%emt 0:14:51]} Bc4 {[%emt 0:05:29]} 12. Be3 {[%emt 0:00:04]} Rd8 {[%emt 0:02:26] [#]} 13. Qc1 $146 {[%emt 0:00:04]} ({Predecessor:} 13. b3 Be6 14. Ne4 Na6 15. Ng5 Bxd4 16. Bxd4 Qxd4+ 17. Qxd4 Rxd4 18. Nxe6 fxe6 19. Kf2 {0-1 (46) Bondarets,V (2236)-Kowalski,I (2305) Lvov 2019}) 13... Bxd4 {[%emt 0:27:20]} 14. Rd1 {[%emt 0:00:18]} Bxe3+ {[%emt 0:00:27]} 15. Qxe3 {[%emt 0:00:04]} Qe8 {[%emt 0:01:19]} 16. Rxd8 {[%emt 0:06:46]} Qxd8 {[%emt 0:00:04]} 17. Rd1 {[%emt 0:00:05]} Nd7 {[%emt 0:00:52]} 18. Bh3 {[%emt 0:15:11] Prevents Be6.} Qb6 $1 {[%emt 0:00:31]} 19. Rd4 {[%emt 0:00:07]} (19. Qxb6 $15 Nxb6 20. b3) 19... e5 $17 {[%emt 0:01:28]} 20. Re4 {[%emt 0:00:07]} Qxe3+ {[%emt 0:02:20]} 21. Rxe3 {[%emt 0:00:01]} f5 {[%emt 0:01:02]} 22. b3 {[%emt 0:00:40]} Ba6 {[%emt 0:15:29]} 23. g4 {[%emt 0:00:19]} f4 {[%emt 0:01:32]} 24. Re4 {[%emt 0:00:04]} g5 {[%emt 0:01:36]} 25. Bf1 {[%emt 0:00:06]} Re8 {[%emt 0:07:13] Strongly threatening ...Nc5.} 26. e3 {[%emt 0:00:11]} Bxf1 {[%emt 0:00:20]} 27. Kxf1 {[%emt 0:00:03][%mdl 4096] Endgame KRN-KRN} Nf6 {[%emt 0:00:38]} 28. Ra4 {[%emt 0:01:40]} a6 {[%emt 0:00:27]} ({Don't play} 28... fxe3 29. Rxa7 Re7 30. Ke2 $11) 29. Ne4 {[%emt 0:04:13]} (29. h4 $15) 29... Nxe4 {[%emt 0:00:45]} 30. Rxe4 {[%emt 0:00:04][%cal Oh2h4] KR-KR} Kf7 {[%emt 0:01:49]} 31. a4 {[%emt 0:01:25]} fxe3 {[%emt 0:03:43]} 32. a5 {[%emt 0:01:56]} Ke6 {[%emt 0:01:11]} 33. Rb4 {[%emt 0:00:05]} Re7 {[%emt 0:00:09]} 34. Ke2 {[%emt 0:00:05]} Kd5 {[%emt 0:01:03]} 35. Kxe3 {[%emt 0:00:06]} Kc5 {[%emt 0:01:18]} 36. Rb6 {[%emt 0:00:13]} Rf7 {[%emt 0:01:09]} 37. Ke4 $2 {[%emt 0:00:27]} (37. Ke2 $17) 37... Kd6 $19 {[%emt 0:01:49]} 38. Ke3 {[%emt 0:00:23]} Kc7 $1 {[%emt 0:00:42]} 39. Ke4 {[%emt 0:04:17]} Rf4+ {[%emt 0:01:30]} 40. Kxe5 {[%emt 0:00:26][%cal Oh2h4]} Rxf3 {[%emt 0:00:12] Hoping for ...Rf4.} 41. Rb4 {[%emt 0:30:05][%cal Oh2h4] Prevents Rf4.} Rh3 {[%emt 0:30:54]} 42. Kf5 {[%emt 0:00:12]} h6 {[%emt 0:00:28][%cal Bh7h6,Bh6h5][%mdl 32]} ({Weaker is} 42... Rxh2 43. Kxg5 Rh3 44. Rf4 $17) 43. Kg6 $2 {[%emt 0:01:10]} (43. Re4 {was the only chance.}) 43... Rxh2 {[%emt 0:02:32]} 44. Re4 {[%emt 0:00:06]} Rh4 {[%emt 0:00:00]} 45. b4 {[%emt 0:00:00]} Kb8 {[%emt 0:00:00]} 46. Re8+ {[%emt 0:00:00]} Ka7 $1 {[%emt 0:00:00]} 47. Re4 {[%emt 0:00:00]} (47. Kf5 $142 h5 48. gxh5 Rxh5 49. Re1) 47... h5 $1 {[%emt 0:00:00]} 48. Kxg5 {[%emt 0:00:00]} Rxg4+ {[%emt 0:00:00]} 49. Rxg4 {[%emt 0:00:00]} hxg4 {[%emt 0:00:00]} 50. Kxg4 {[%emt 0:00:00] [#] K3P-KPP} Kb8 $2 {[%emt 0:00:00]} (50... b5 $1 51. Kf5 Kb7 52. Ke4 Kc7 53. Kf3 Kd6 54. Kf4 Kc7 55. Ke4 Kd6 56. Kf4 c5 57. Ke4 cxb4 58. Kd4 Kc6 59. Ke4 b3 60. Kd3 b4 61. Kd2 Kb5 62. Kc1 Kxa5 63. Kd1 Kb5 64. Kd2 a5 65. Kc1 a4 66. Kd1 Kc4 67. Kd2 a3 68. Kc1 b2+ 69. Kd2 b1=Q 70. Ke3 a2 71. Kf2 a1=Q 72. Kg3 Qd3+ 73. Kh4 Qf6+ 74. Kh5 Qh3#) 51. Kf4 $2 {[%emt 0:00:00][%mdl 8192] [#]} (51. Kf5 $11) 51... Kc7 $2 {[%emt 0:00:00]} (51... c5 $1 {mates} 52. bxc5 Kc7 53. Kf3 Kc6 54. Ke4 Kxc5 55. Ke5 Kb4 56. Kf5 Kxa5 57. Kf6 Kb4 58. Kg7 b5 59. Kf8 Kc4 60. Kf7 b4 61. Ke6 b3 62. Kf6 b2 63. Kg6 Kd4 64. Kg5 Ke5 65. Kh4 Kf4 66. Kh5 b1=Q 67. Kh6 Kf5 68. Kg7 Qb7+ 69. Kg8 Kf6 70. Kh8 Qg7#) 52. Ke5 {[%emt 0:00:00]} c5 {[%emt 0:05:05]} 53. bxc5 {[%emt 0:00:00][%mdl 8192]} (53. Kd5 $11) 53... Kc6 {[%emt 0:00:00] Black mates.} 54. Kd4 {[%emt 0:00:00]} Kb5 {[%emt 0:00:00]} 55. Kd5 {[%emt 0:00:00]} Kxa5 {[%emt 0:00:00]} 56. c6 {[%emt 0:00:00]} bxc6+ {[%emt 0:00:00]} 57. Kxc6 {[%emt 0:00:00]} Kb4 {[%emt 0:02:30] Weighted Error Value: White=0.61/Black=0.42} 0-1

[Event "Austrian Championship 2022"]
[Site "Vienna"]
[Date "2022.08.16"]
[Round "6.4"]
[White "Spiesberger, Gerhard"]
[Black "Balint, Peter"]
[Result "1/2-1/2"]
[ECO "C22"]
[WhiteElo "1972"]
[BlackElo "2051"]
[Annotator "NA RC"]
[PlyCount "96"]
[EventDate "2022.08.12"]
[EventType "swiss"]
[EventCountry "AUT"]
[SourceTitle "playchess.com"]
[Source "ChessBase"]
[SourceQuality "1"]
[TimeControl "40/5400+30:1800+30"]

1. e4 {[%emt 0:00:05]} e5 {[%emt 0:03:18]} 2. d4 {[%emt 0:01:50]} exd4 {[%emt 0:00:32]} 3. Qxd4 {[%emt 0:00:09]} Nc6 {[%emt 0:00:10]} 4. Qe3 {[%emt 0:00:07]} Nf6 {[%emt 0:00:28]} 5. Nc3 {[%emt 0:00:18]} Bb4 {[%emt 0:00:29]} 6. Bd2 {[%emt 0:00:22]} O-O {[%emt 0:00:59]} 7. O-O-O {[%emt 0:00:17]} Re8 {[%emt 0:03:00]} 8. f3 {[%emt 0:00:18]} d5 {[%emt 0:09:52]} 9. Qg5 {[%emt 0:00:42]} dxe4 {[%emt 0:20:17]} 10. Nxe4 {[%emt 0:02:08]} Nxe4 {[%emt 0:01:08]} 11. Qxd8 {[%emt 0:01:15]} Rxd8 {[%emt 0:00:32]} 12. fxe4 {[%emt 0:01:07]} Bc5 {[%emt 0:01:58]} 13. Nf3 {[%emt 0:02:32]} Be6 {[%emt 0:01:04]} 14. a3 {[%emt 0:01:51]} h6 {[%emt 0:00:59]} 15. Bb5 {[%emt 0:07:27]} Nd4 {[%emt 0:02:23]} 16. Nxd4 {[%emt 0:05:29]} Bxd4 {[%emt 0:00:50]} 17. h3 {[%emt 0:05:32]} c6 {[%emt 0:03:51]} 18. Be2 {[%emt 0:02:18]} f6 {[%emt 0:03:33]} 19. Bf3 {[%emt 0:01:22]} Rac8 {[%emt 0:06:38]} 20. Rhe1 {[%emt 0:03:01]} Kf7 {[%emt 0:02:22]} 21. Be3 {[%emt 0:03:14]} Bxe3+ {[%emt 0:06:38]} 22. Rxe3 {[%emt 0:00:47]} Rxd1+ {[%emt 0:00:54]} 23. Kxd1 {[%emt 0:00:31]} Ke7 {[%emt 0:00:31]} 24. Kd2 {[%emt 0:00:40]} Kd6 {[%emt 0:01:09]} 25. Rd3+ {[%emt 0:00:54]} Ke5 {[%emt 0:00:08]} 26. Ke3 {[%emt 0:00:20]} Rc7 {[%emt 0:03:14]} 27. Bh5 {[%emt 0:08:29]} b6 {[%emt 0:02:28]} 28. Bg6 {[%emt 0:01:54]} Rd7 {[%emt 0:03:05]} 29. Rxd7 {[%emt 0:04:59]} Bxd7 {[%emt 0:00:17]} 30. c3 {[%emt 0:00:41]} c5 {[%emt 0:00:25]} 31. b4 {[%emt 0:00:26]} cxb4 {[%emt 0:00:59]} 32. cxb4 {[%emt 0:00:42]} Bc6 {[%emt 0:03:42]} 33. h4 {[%emt 0:00:49]} Ba4 {[%emt 0:01:01]} 34. g3 {[%emt 0:01:21]} Bb5 {[%emt 0:01:00]} 35. Bf5 {[%emt 0:06:21]} Be8 {[%emt 0:04:45]} 36. Bc8 {[%emt 0:04:47]} Bf7 {[%emt 0:00:58]} 37. Bb7 {[%emt 0:00:38]} Bg8 {[%emt 0:00:25]} 38. Bc8 {[%emt 0:02:06]} Bf7 {[%emt 0:00:27]} 39. Bb7 {[%emt 0:00:25]} Be6 {[%emt 0:00:12]} 40. Ba6 {[%emt 0:03:53]} Bh3 {[%emt 0:00:48]} 41. Bc4 {[%emt 0:31:25]} Bg2 {[%emt 0:30:08]} 42. Bd3 {[%emt 0:00:15]} g5 {[%emt 0:00:42]} 43. Bc2 {[%emt 0:00:36]} Bf1 {[%emt 0:00:00]} 44. Bb3 {[%emt 0:28:07]} Bb5 {[%emt 0:00:00]} 45. Bc2 {[%emt 0:00:00]} Be8 {[%emt 0:00:00]} 46. Bd3 {[%emt 0:00:00]} Bg6 {[%emt 0:00:00]} 47. Bc2 {[%emt 0:00:00]} Be8 {[%emt 0:00:00]} 48. Bd3 {[%emt 0:00:00]} Bg6 {[%emt 0:00:00]} 1/2-1/2

[Event "Austrian Championship 2022"]
[Site "Vienna"]
[Date "2022.08.16"]
[Round "6.5"]
[White "Leisch, Lukas"]
[Black "Schroll, Gerhard"]
[Result "1-0"]
[ECO "A87"]
[WhiteElo "2404"]
[BlackElo "2281"]
[Annotator "TA"]
[PlyCount "63"]
[EventDate "2022.08.12"]
[EventType "swiss"]
[EventCountry "AUT"]
[SourceTitle "playchess.com"]
[Source "ChessBase"]
[SourceQuality "1"]
[TimeControl "40/5400+30:1800+30"]

{[%evp 14,63,20,27,64,54,48,52,54,64,56,63,72,19,32,-16,-4,0,0,0,0,0,17,10,14,13,11,0,13,16,26,20,54,8,195,193,322,322,322,318,316,314,304,292,347,315,362,341,371,359,404,354]} 1. d4 {[%emt 0:00:03]} f5 {[%emt 0:00:14]} 2. c4 {[%emt 0:00:09]} Nf6 {[%emt 0:00:10]} 3. Nc3 {[%emt 0:00:08]} g6 {[%emt 0:00:25]} 4. g3 {[%emt 0:00:10]} Bg7 {[%emt 0:00:15]} 5. Bg2 {[%emt 0:00:07]} O-O {[%emt 0:00:28]} 6. Nf3 {[%emt 0:00:06]} d6 {[%emt 0:00:34]} 7. O-O {[%emt 0:00:07]} Qe8 {[%emt 0:00:28] 7...Qe8 has become a bit dusty these days.} 8. Re1 {[%emt 0:00:17][%cal Bf1e1,Be1e4,Be4h4][%mdl 32]} Na6 {[%emt 0:02:39] A87: Dutch Defence: Leningrad System: 5 Nf3.} 9. e4 {[%emt 0:08:57]} fxe4 {[%emt 0:01:57]} 10. Nxe4 {[%emt 0:00:06]} Nxe4 {[%emt 0:00:27] White is slightly better.} 11. Rxe4 {[%emt 0:00:02]} Bf5 {[%emt 0:01:26] [#]} 12. Rh4 $146 {[%emt 0:00:57]} ({Predecessor:} 12. Re2 Bg4 13. Qb3 Rb8 14. Bg5 e5 15. dxe5 Bxe5 16. Rae1 Nc5 17. Qa3 Nd7 18. Nxe5 Nxe5 {1-0 (28) Fischer,D (1598)-Lorenz,A (1504) Willingen 2020}) 12... c6 {[%emt 0:09:34]} 13. Bg5 {[%emt 0:06:29]} (13. Qb3 $16) 13... e5 $11 {[%emt 0:04:09]} 14. dxe5 {[%emt 0:20:25]} (14. d5 $14) 14... dxe5 {[%emt 0:02:53]} 15. Qd2 {[%emt 0:00:24]} e4 {[%emt 0:03:33]} 16. Nd4 {[%emt 0:08:32]} Nc5 {[%emt 0:04:03]} 17. Bh6 {[%emt 0:04:26] Threatens to win with Bxg7.} Bxh6 {[%emt 0:02:10]} 18. Qxh6 {[%emt 0:00:33][%csl Gh4][%cal Rh6h7]} Rf7 {[%emt 0:00:56]} 19. Nxf5 {[%emt 0:01:09]} gxf5 {[%emt 0:00:01]} 20. Rd1 {[%emt 0:05:26]} Nd3 {[%emt 0:07:28]} 21. Qg5+ {[%emt 0:05:08]} Kh8 {[%emt 0:03:03]} 22. Qe3 {[%emt 0:00:15][%cal Rg2e4] aiming for Bxe4!} Rg7 {[%emt 0:07:56] [#]} 23. b3 {[%emt 0:01:21]} (23. Bxe4 $1 $14 {feels stronger.} Nxb2 (23... Qe7 24. Bg2) 24. Re1) 23... Rd8 $2 {[%emt 0:02:22] [#] Loses the game.} (23... Ne5 $11) 24. Bxe4 $1 $18 {[%emt 0:11:18]} (24. Qxa7 f4 25. Bf1 Qe5 $17) 24... fxe4 {[%emt 0:04:24]} (24... Nb4 {was necessary.} 25. Rxd8 Qxd8) 25. Rxe4 {[%emt 0:00:14]} Qd7 {[%emt 0:00:06] [#]} 26. Rxd3 $1 {[%emt 0:00:10][%mdl 576] Deflection} Qxd3 {[%emt 0:00:16]} 27. Re8+ {[%emt 0:00:25][%mdl 64] Deflection} Rxe8 {[%emt 0:42:03]} 28. Qxd3 {[%emt 0:00:06]} a6 {[%emt 0:00:00]} 29. Kg2 {[%emt 0:01:52]} Rf7 {[%emt 0:00:00]} 30. f4 {[%emt 0:02:21]} Kg8 {[%emt 0:00:00]} 31. Kf3 {[%emt 0:00:38]} Rfe7 {[%emt 0:00:00]} 32. h4 {[%emt 0:03:00] Weighted Error Value: White=0.09 (flawless) /Black=0.40} 1-0

[Event "Austrian Championship 2022"]
[Site "Vienna"]
[Date "2022.08.16"]
[Round "6.5"]
[White "Tumanyan, Gor"]
[Black "Miazhynski, Michael"]
[Result "0-1"]
[ECO "B12"]
[WhiteElo "1884"]
[BlackElo "1994"]
[Annotator "NA RC"]
[PlyCount "68"]
[EventDate "2022.08.12"]
[EventType "swiss"]
[EventCountry "AUT"]
[SourceTitle "playchess.com"]
[Source "ChessBase"]
[SourceQuality "1"]
[TimeControl "40/5400+30:1800+30"]

1. e4 {[%emt 0:00:02]} c6 {[%emt 0:00:28]} 2. d4 {[%emt 0:00:30]} d5 {[%emt 0:00:06]} 3. e5 {[%emt 0:00:08]} Bf5 {[%emt 0:00:08]} 4. g4 {[%emt 0:00:10]} Bd7 {[%emt 0:01:25]} 5. Be3 {[%emt 0:00:07]} h5 {[%emt 0:00:38]} 6. gxh5 {[%emt 0:03:01]} Bf5 {[%emt 0:04:30]} 7. Ne2 {[%emt 0:02:18]} e6 {[%emt 0:07:53]} 8. Ng3 {[%emt 0:08:58]} Bh7 {[%emt 0:03:23]} 9. Nd2 {[%emt 0:07:00]} Nd7 {[%emt 0:02:32]} 10. c4 {[%emt 0:36:04]} Ne7 {[%emt 0:15:56]} 11. c5 {[%emt 0:12:43]} a5 {[%emt 0:00:49]} 12. a3 {[%emt 0:03:39]} a4 {[%emt 0:00:44]} 13. Rg1 {[%emt 0:13:56]} b6 {[%emt 0:00:55]} 14. b4 {[%emt 0:00:56]} axb3 {[%emt 0:00:29]} 15. Nxb3 {[%emt 0:00:49]} bxc5 {[%emt 0:01:00]} 16. Nxc5 {[%emt 0:00:22]} Nxc5 {[%emt 0:05:06]} 17. dxc5 {[%emt 0:00:02]} Nf5 {[%emt 0:00:20]} 18. Nxf5 {[%emt 0:01:54]} Bxf5 {[%emt 0:00:01]} 19. Be2 {[%emt 0:05:08]} Rh7 {[%emt 0:11:53]} 20. Qd2 {[%emt 0:01:32]} Qh4 {[%emt 0:00:41]} 21. Qb2 {[%emt 0:01:00]} Qa4 {[%emt 0:05:46]} 22. Kd2 {[%emt 0:00:37]} d4 {[%emt 0:04:57]} 23. Bxd4 {[%emt 0:00:22]} Rd8 {[%emt 0:00:01]} 24. Ke3 {[%emt 0:00:09]} Bxc5 {[%emt 0:00:15]} 25. Rgd1 {[%emt 0:00:35]} g6 {[%emt 0:00:40]} 26. f3 {[%emt 0:00:52]} Be7 {[%emt 0:01:54]} 27. f4 {[%emt 0:00:28]} Kf8 {[%emt 0:00:51]} 28. Kf2 {[%emt 0:00:34]} gxh5 {[%emt 0:01:19]} 29. Be3 {[%emt 0:00:32]} Bh4+ {[%emt 0:00:08]} 30. Kg1 {[%emt 0:00:21]} Rg7+ {[%emt 0:00:09]} 31. Bg4 {[%emt 0:00:39]} Rxg4+ {[%emt 0:00:06]} 32. Kf1 {[%emt 0:00:17]} Qc4+ {[%emt 0:00:05]} 33. Qe2 {[%emt 0:00:33]} Bd3 {[%emt 0:00:36]} 34. Rxd3 {[%emt 0:00:22]} Rxd3 {[%emt 0:00:17]} 0-1

[Event "Austrian Championship 2022"]
[Site "Vienna"]
[Date "2022.08.16"]
[Round "6.6"]
[White "Kruckenhauser, Arthur"]
[Black "Schernthaner, David"]
[Result "1/2-1/2"]
[ECO "B22"]
[WhiteElo "2303"]
[BlackElo "2319"]
[Annotator "TA"]
[PlyCount "32"]
[EventDate "2022.08.12"]
[EventType "swiss"]
[EventCountry "AUT"]
[SourceTitle "playchess.com"]
[Source "ChessBase"]
[SourceQuality "1"]
[TimeControl "40/5400+30:1800+30"]

{[%evp 13,32,14,14,-17,-7,-24,-19,-24,-17,-25,-19,-24,-17,-58,-13,-16,-12,-19,-18,-22,-23]} 1. e4 {[%emt 0:00:03]} c5 {[%emt 0:00:06]} 2. c3 {[%emt 0:00:06]} d5 {[%emt 0:00:05]} 3. exd5 {[%emt 0:00:07]} Qxd5 {[%emt 0:00:05]} 4. d4 {[%emt 0:00:05]} Nf6 {[%emt 0:00:04]} 5. Nf3 {[%emt 0:00:27]} e6 {[%emt 0:01:05]} 6. Na3 {[%emt 0:01:01]} a6 {[%emt 0:01:16]} 7. Nc4 {[%emt 0:04:32]} Nbd7 {[%emt 0:01:30]} 8. Be3 {[%emt 0:07:08] B22: Sicilian: 2 c3.} b5 {[%emt 0:06:27]} 9. Nce5 {[%emt 0:12:48]} Nxe5 {[%emt 0:15:44]} 10. dxe5 {[%emt 0:07:01]} Qxd1+ {[%emt 0:07:23]} 11. Rxd1 {[%emt 0:00:26]} Nd5 {[%emt 0:00:05] [#]} 12. Bd2 $146 {[%emt 0:07:29]} ({Predecessor:} 12. Bg5 h6 13. Bh4 Bb7 14. Bg3 Be7 15. Be2 O-O 16. O-O Rfd8 17. Rd2 g5 18. h3 {0-1 (56) Kolaric,S (2185)-Beydullayeva,G (2290) Warsaw 2021}) 12... c4 {[%emt 0:03:25]} 13. b3 {[%emt 0:07:57]} cxb3 {[%emt 0:01:40]} (13... b4 $5 {[%cal Rb4c3]} 14. bxc4 Nxc3 15. Bxc3 bxc3 $15) 14. axb3 {[%emt 0:00:03] The position is equal.} Bb7 {[%emt 0:00:17]} 15. c4 {[%emt 0:05:53]} bxc4 {[%emt 0:02:37]} 16. Bxc4 {[%emt 0:00:59]} Bc5 {[%emt 0:06:55] Weighted Error Value: White=0.16 (very precise) /Black=0.04 (flawless)} 1/2-1/2

[Event "Austrian Championship 2022"]
[Site "Vienna"]
[Date "2022.08.16"]
[Round "6.6"]
[White "Fuchs, Patrick"]
[Black "Stadlinger, Matthias"]
[Result "1/2-1/2"]
[ECO "C63"]
[WhiteElo "1990"]
[BlackElo "1975"]
[Annotator "NA RC"]
[PlyCount "51"]
[EventDate "2022.08.12"]
[EventType "swiss"]
[EventCountry "AUT"]
[SourceTitle "playchess.com"]
[Source "ChessBase"]
[SourceQuality "1"]
[TimeControl "40/5400+30:1800+30"]

1. e4 {[%emt 0:00:03]} e5 {[%emt 0:00:08]} 2. Nf3 {[%emt 0:00:08]} Nc6 {[%emt 0:00:03]} 3. Bb5 {[%emt 0:00:06]} f5 {[%emt 0:00:38]} 4. d3 {[%emt 0:00:06]} fxe4 {[%emt 0:00:09]} 5. dxe4 {[%emt 0:00:06]} Nf6 {[%emt 0:00:08]} 6. O-O {[%emt 0:00:39]} d6 {[%emt 0:00:46]} 7. Bg5 {[%emt 0:04:38]} Be7 {[%emt 0:00:07]} 8. Nc3 {[%emt 0:00:41]} Be6 {[%emt 0:05:09]} 9. Qe2 {[%emt 0:11:07]} O-O {[%emt 0:03:06]} 10. Bc4 {[%emt 0:02:31]} Qd7 {[%emt 0:08:15]} 11. Rad1 {[%emt 0:09:23]} h6 {[%emt 0:23:55]} 12. Bc1 {[%emt 0:27:04]} Kh7 {[%emt 0:09:06]} 13. Bxe6 {[%emt 0:15:22]} Qxe6 {[%emt 0:00:08]} 14. Nd5 {[%emt 0:00:36]} Qc8 {[%emt 0:19:12]} 15. Nh4 {[%emt 0:00:52]} Nxd5 {[%emt 0:08:54]} 16. exd5 {[%emt 0:00:02]} Bxh4 {[%emt 0:00:15]} 17. dxc6 {[%emt 0:00:05]} Be7 {[%emt 0:00:23]} 18. f4 {[%emt 0:05:08]} bxc6 {[%emt 0:03:17]} 19. Qe4+ {[%emt 0:00:01]} Kh8 {[%emt 0:01:00]} 20. fxe5 {[%emt 0:01:27]} d5 {[%emt 0:05:45]} 21. Qg6 {[%emt 0:01:02]} Qe8 {[%emt 0:00:10]} 22. Rxf8+ {[%emt 0:00:06]} Bxf8 {[%emt 0:00:08]} 23. Qf5 {[%emt 0:00:06]} Bc5+ {[%emt 0:01:27]} 24. Kh1 {[%emt 0:00:49]} Qe7 {[%emt 0:00:24]} 25. Qg6 {[%emt 0:03:41]} Qe8 {[%emt 0:02:16]} 26. Qf5 {[%emt 0:01:22]} 1/2-1/2

[Event "Austrian Championship 2022"]
[Site "Vienna"]
[Date "2022.08.16"]
[Round "6.7"]
[White "Ganaus, Hannes"]
[Black "Schwabeneder, Florian"]
[Result "0-1"]
[ECO "D02"]
[WhiteElo "2284"]
[BlackElo "2430"]
[Annotator "TA"]
[PlyCount "42"]
[EventDate "2022.08.12"]
[EventType "swiss"]
[EventCountry "AUT"]
[SourceTitle "playchess.com"]
[Source "ChessBase"]
[SourceQuality "1"]
[TimeControl "40/5400+30:1800+30"]

{[%evp 11,42,0,0,0,9,8,9,-12,0,0,0,-6,3,-100,-92,-93,-91,-95,-83,-99,-99,-93,-70,-70,-52,-47,-72,-91,-81,-67,-59,-170,-168]} 1. d4 {[%emt 0:00:04]} d5 {[%emt 0:00:13]} 2. Nf3 {[%emt 0:00:05]} Nf6 {[%emt 0:00:17]} 3. c3 {[%emt 0:00:08]} g6 {[%emt 0:03:12]} 4. h3 {[%emt 0:01:52]} Bg7 {[%emt 0:01:14]} 5. Bf4 {[%emt 0:00:09]} O-O {[%emt 0:00:28]} 6. e3 {[%emt 0:00:13]} b6 {[%emt 0:06:33]} 7. Nbd2 {[%emt 0:01:07] D02: 1 d4 d5 2 Nf3 sidelines, including 2...Nf6 3 g3 and 2...Nf6 3 Bf4.} Bb7 {[%emt 0:00:29]} 8. Bd3 {[%emt 0:08:16]} c5 {[%emt 0:04:24]} 9. Ne5 {[%emt 0:11:11] The position is equal.} Nc6 {[%emt 0:02:24]} 10. h4 {[%emt 0:01:08][%cal Oh4h5] [#]} h5 $146 {[%emt 0:23:50]} ({Predecessor:} 10... Nxe5 11. Bxe5 h5 12. Qe2 c4 13. Bc2 b5 14. f3 b4 15. g4 bxc3 16. bxc3 Kh8 17. Bxf6 Bxf6 18. gxh5 gxh5 {½-½ (59) Phillips,R (1852)-Zong,D (2141) Chess.com INT 2021}) 11. Qe2 {[%emt 0:26:37]} Qc8 {[%emt 0:09:23]} 12. Bg5 {[%emt 0:11:00] [#]} (12. Ndf3 $11) 12... Nxe5 $1 $17 {[%emt 0:13:45]} 13. dxe5 {[%emt 0:00:02] [#]} Ng4 {[%emt 0:00:15]} 14. Bxe7 {[%emt 0:05:40]} Re8 {[%emt 0:00:17]} ({Resist} 14... Nxe5 15. Bxf8 Kxf8 16. f3 $14) 15. Bg5 {[%emt 0:00:39]} Nxe5 {[%emt 0:01:31]} 16. Bb5 {[%emt 0:00:10]} Bc6 {[%emt 0:05:14] Hoping for ...c4.} 17. Bxc6 {[%emt 0:00:56]} Qxc6 {[%emt 0:00:08]} 18. O-O {[%emt 0:00:14]} b5 {[%emt 0:02:58]} 19. Rfd1 {[%emt 0:00:56]} c4 {[%emt 0:06:12] And now ...Nd3 would win. Black is more active.} 20. Nf3 {[%emt 0:00:24]} Nd3 {[%emt 0:02:04] Strongly threatening ...f6.} 21. Ne1 {[%emt 0:01:34]} ({White should play} 21. Qd2 $1 $15) 21... f6 {[%emt 0:01:04] Weighted Error Value: White=0.24 (precise) /Black=0.03 (flawless)} 0-1

[Event "Austrian Championship 2022"]
[Site "Vienna"]
[Date "2022.08.16"]
[Round "6.7"]
[White "Stadlinger, Lea"]
[Black "Wiedermann, Daniel"]
[Result "0-1"]
[ECO "B15"]
[WhiteElo "1723"]
[BlackElo "2053"]
[Annotator "NA RC"]
[PlyCount "56"]
[EventDate "2022.08.12"]
[EventType "swiss"]
[EventCountry "AUT"]
[SourceTitle "playchess.com"]
[Source "ChessBase"]
[SourceQuality "1"]
[TimeControl "40/5400+30:1800+30"]

1. e4 {[%emt 0:00:31]} c6 {[%emt 0:00:14]} 2. d4 {[%emt 0:00:05]} d5 {[%emt 0:00:02]} 3. Nc3 {[%emt 0:00:22]} dxe4 {[%emt 0:00:05]} 4. Nxe4 {[%emt 0:00:06]} Nf6 {[%emt 0:00:15]} 5. Nxf6+ {[%emt 0:00:31]} exf6 {[%emt 0:00:05]} 6. c3 {[%emt 0:00:53]} Bd6 {[%emt 0:00:04]} 7. Bd3 {[%emt 0:00:31]} O-O {[%emt 0:00:05]} 8. Ne2 {[%emt 0:01:53]} Re8 {[%emt 0:00:28]} 9. Be3 {[%emt 0:01:09]} Nd7 {[%emt 0:00:19]} 10. Qc2 {[%emt 0:01:06]} Nf8 {[%emt 0:01:24]} 11. O-O-O {[%emt 0:01:57]} b5 {[%emt 0:02:50]} 12. Ng3 {[%emt 0:12:21]} Be6 {[%emt 0:06:28]} 13. Kb1 {[%emt 0:02:58]} a5 {[%emt 0:05:08]} 14. Ne4 {[%emt 0:02:55]} a4 {[%emt 0:01:16]} 15. Nc5 {[%emt 0:08:14]} Bd5 {[%emt 0:08:21]} 16. Be4 {[%emt 0:07:33]} Bxc5 {[%emt 0:05:04]} 17. Bxd5 {[%emt 0:00:40]} Qxd5 {[%emt 0:00:22]} 18. dxc5 {[%emt 0:00:29]} Qxg2 {[%emt 0:00:27]} 19. Bd4 {[%emt 0:07:05]} Qf3 {[%emt 0:04:56]} 20. Rhg1 {[%emt 0:03:53]} a3 {[%emt 0:21:52]} 21. Rg3 {[%emt 0:06:22]} Qh5 {[%emt 0:01:30]} 22. Bxf6 {[%emt 0:05:55]} Ng6 {[%emt 0:00:15]} 23. Bg5 {[%emt 0:06:07]} Re2 {[%emt 0:00:18]} 24. Bd2 {[%emt 0:05:00]} axb2 {[%emt 0:06:56]} 25. Qd3 {[%emt 0:05:09]} Ne5 {[%emt 0:11:06]} 26. Qd4 {[%emt 0:03:34]} Re4 {[%emt 0:00:17]} 27. Rxg7+ {[%emt 0:02:23]} Kh8 {[%emt 0:03:55]} 28. Rxh7+ {[%emt 0:05:09]} Qxh7 {[%emt 0:00:06]} 0-1